bitfinex/quotes_ETHUSD_20240926
["timestamp","ask_amount","ask_price","bid_price","bid_amount"]
[1727372860398,7.37009813,2641.4,2640.9,3.78655]
[1727372860599,3.58419813,2641.4,2640.9,3.78655]
[1727372860918,0.09465786,2641.4,2641.0,3.78637]
[1727372861567,0.09465786,2641.4,2640.9,3.78655]
[1727372861767,0.09465786,2641.4,2640.9,4.543886]
[1727372862072,4.61748,2641.1,2640.5,3.78702]
[1727372862245,3.88111084,2641.0,2640.5,3.78702]
[1727372862562,0.8311,2641.1,2640.5,3.78702]
[1727372862874,0.8311,2641.1,2640.6,3.78692]
[1727372864263,4.61743,2641.1,2640.6,3.78692]
[1727372866240,0.8311,2641.1,2640.7,3.78686]
[1727372866440,0.8311,2641.1,2640.8,3.78673]
[1727372866654,4.54184,2641.5,2640.9,3.78651]
[1727372866859,4.54184,2641.5,2641.0,3.78631]
[1727372867434,4.54184,2641.5,2640.9,4.59081]
[1727372867649,4.54184,2641.5,2640.9,3.78649]
[1727372867856,4.54184,2641.5,2640.9,4.245569]
[1727372868057,4.54184,2641.5,2641.0,3.78639]
[1727372868869,3.78587,2641.4,2640.9,4.245569]
[1727372870776,3.78616,2641.2,2640.7,3.78676]
[1727372870976,3.78616,2641.2,2640.6,3.78694]
[1727372871686,3.78616,2641.2,2640.7,3.78687]
[1727372872485,3.78616,2641.2,2640.8,3.78672]
[1727372874068,3.78616,2641.2,2640.6,3.78701]
[1727372874299,3.78616,2641.2,2640.7,3.78685]
[1727372875186,3.78616,2641.2,2640.6,4.165711]
[1727372875387,3.78616,2641.2,2640.7,3.78684]
[1727372875599,7.57242,2641.2,2640.7,3.78684]
[1727372875901,7.57242,2641.2,2640.6,0.378701]
[1727372875902,8.32908,2641.0,2640.6,0.378701]
[1727372876102,8.32908,2641.0,2640.5,3.78714]
[1727372876103,0.09467095,2640.9,2640.5,3.78714]
[1727372876460,4.54255,2641.0,2640.5,3.78714]
[1727372876867,4.54255,2641.0,2640.0,3.78782]
[1727372876868,0.7561,2640.3,2639.5,0.0379748]
[1727372877075,3.48954027,2639.8,2639.5,0.0379748]
[1727372877783,0.09472002,2639.7,2639.5,0.0379748]
[1727372878165,3.88304002,2639.7,2639.5,0.0379748]
[1727372878463,4.54455,2639.6,2639.5,0.0379748]
[1727372878695,6.7881,2639.9,2639.5,0.0379748]
[1727372878902,0.7561,2639.8,2639.5,0.0379748]
[1727372879191,3.78834,2639.7,2639.5,0.0379748]
[1727372879778,0.09472185,2639.6,2639.5,0.0379748]
[1727372880322,0.7561,2639.8,2639.5,0.0379748]
[1727372880906,3.78832,2639.7,2639.5,0.0379748]
[1727372881905,3.78845,2639.6,2639.5,0.0379748]
[1727372883106,3.78831,2639.7,2639.5,0.0379748]
[1727372883309,3.7883,2639.7,2639.5,0.0379748]
[1727372884529,3.78845,2639.6,2639.5,0.0379748]
[1727372884823,3.78823,2639.8,2639.5,0.0379748]
[1727372885728,3.78831,2639.7,2639.5,0.0379748]
[1727372885936,3.88316086,2639.6,2639.5,0.0379748]
[1727372886116,4.58335,2639.6,2639.5,0.0379748]
[1727372886290,9.53599209,2639.6,2639.5,0.0379748]
[1727372886490,9.44125958,2639.6,2639.5,0.0379748]
[1727372886786,3.78831,2639.7,2639.5,0.0379748]
[1727372887020,3.0,2640.0,2639.5,0.0379748]
[1727372887021,3.7881,2639.9,2639.5,0.0379748]
[1727372887602,7.57624,2639.9,2639.5,0.0379748]
[1727372887801,3.7881,2639.9,2639.5,0.0379748]
[1727372888334,3.78817,2639.8,2639.5,0.0379748]
[1727372889232,3.78831,2639.7,2639.5,0.0379748]
[1727372889530,1.057627,2639.8,2639.5,0.0379748]
[1727372889531,4.845797,2639.8,2639.5,0.0379748]
[1727372889694,3.78845,2639.6,2639.5,0.0379748]
[1727372890128,3.88317597,2639.6,2639.5,0.0379748]
[1727372890332,3.88317593,2639.6,2639.5,0.0379748]
[1727372890531,4.83557822,2639.6,2639.5,0.0379748]
[1727372891202,4.74085229,2639.6,2639.5,0.0379748]
[1727372897301,3.78845,2639.6,2639.5,0.0379748]
[1727372899697,3.78832,2639.7,2639.5,0.0379748]
[1727372899947,7.57674,2639.7,2639.5,0.0379748]
[1727372900244,3.78845,2639.6,2639.5,0.0379748]
[1727372902641,1.057627,2639.8,2639.5,0.0379748]
[1727372902839,3.78831,2639.7,2639.5,0.0379748]
[1727372903328,3.78845,2639.6,2639.5,0.0379748]
[1727372903707,8.13722005,2639.6,2639.5,0.0379748]
[1727372904048,8.04249696,2639.6,2639.5,0.0379748]
[1727372905315,11.59249696,2639.6,2639.5,0.0379748]
[1727372905507,11.98771951,2639.6,2639.5,0.0379748]
[1727372905746,13.75454,2639.6,2639.5,0.0379748]
[1727372914015,0.39522255,2639.6,2639.5,0.0379748]
[1727372914524,3.78811,2639.9,2639.5,0.8091748]
[1727372914724,3.87515696,2640.2,2639.5,0.8091748]
[1727372914725,3.7884,2639.7,2639.5,0.8091748]
[1727372915737,3.78845,2639.6,2639.5,0.8091748]
[1727372916266,3.78845,2639.6,2639.5,0.0379748]
[1727372916932,7.28799696,2639.6,2639.5,0.0379748]
[1727372917132,7.38272455,2639.6,2639.5,0.0379748]
[1727372917329,8.58294701,2639.6,2639.5,0.0379748]
[1727372917540,8.48821942,2639.6,2639.5,0.0379748]
[1727372918958,7.28799696,2639.6,2639.5,0.0379748]
[1727372920366,7.38272445,2639.6,2639.5,0.0379748]
[1727372921971,7.38272438,2639.6,2639.5,0.0379748]
[1727372922334,7.28799696,2639.6,2639.5,0.0379748]
[1727372922959,7.38272444,2639.6,2639.5,0.0379748]
[1727372924461,7.28799696,2639.6,2639.5,0.0379748]
[1727372924768,8.57347403,2639.6,2639.5,0.0379748]
[1727372925075,8.47874666,2639.6,2639.5,0.0379748]
[1727372925432,12.02874666,2639.6,2639.5,0.0379748]
[1727372928369,13.24994386,2639.6,2639.5,0.0379748]
[1727372928976,13.24994386,2639.6,2638.7,0.0379748]
[1727372928977,3.55,2639.5,2638.7,0.0379748]
[1727372929275,11.66544696,2638.8,2638.7,0.0379748]
[1727372931953,7.3396,2638.8,2638.7,0.0379748]
[1727372932637,6.7896,2638.8,2638.7,0.0379748]
[1727372932843,3.78947,2638.9,2638.7,0.8204748]
[1727372933633,4.32584696,2639.4,2638.7,0.8204748]
[1727372933938,3.78959,2638.9,2638.7,0.8204748]
[1727372935050,3.7896,2638.8,2638.7,0.0379748]
[1727372935253,3.88435102,2638.8,2638.7,0.0379748]
[1727372935453,10.38389798,2638.8,2638.7,0.0379748]
[1727372935650,10.83914696,2638.8,2638.7,0.0379748]
[1727372935861,12.30202066,2638.8,2638.7,0.0379748]
[1727372936072,13.12832066,2638.8,2638.7,0.0379748]
[1727372936375,9.6287737,2638.8,2638.7,0.0379748]
[1727372936561,13.12832066,2638.8,2638.7,0.0379748]
[1727372938683,9.6287737,2638.8,2638.7,0.0379748]
[1727372938882,8.56083025,2638.8,2638.7,0.0379748]
[1727372939056,12.06037721,2638.8,2638.7,0.0379748]
[1727372939444,7.73453025,2638.8,2638.7,0.0379748]
[1727372939651,7.3396,2638.8,2638.7,0.0379748]
[1727372940085,6.7896,2638.8,2638.7,0.0379748]
[1727372940245,6.88435797,2638.8,2638.7,0.0379748]
[1727372941673,3.78945,2638.9,2638.7,0.0379748]
[1727372941882,7.57901,2638.9,2638.7,0.0379748]
[1727372942388,3.88435033,2638.8,2638.7,0.0379748]
[1727372942689,5.71793473,2638.8,2638.7,0.0379748]
[1727372943187,9.26793473,2638.8,2638.7,0.0379748]
[1727372945193,9.66302091,2638.8,2638.7,0.0379748]
[1727372945991,8.30202091,2638.8,2638.7,0.0379748]
[1727372946192,6.7896,2638.8,2638.7,0.0379748]
[1727372947603,3.78928,2639.1,2638.7,0.0379748]
[1727372947758,3.78932,2639.0,2638.8,0.7839]
[1727372947956,3.78928,2639.1,2638.8,0.7839]
[1727372948151,3.78928,2639.1,2638.8,1.24506548]
[1727372948361,3.88413971,2639.0,2638.8,1.24506548]
[1727372948551,3.78945,2638.9,2638.8,0.7839]
[1727372950280,3.7896,2638.8,2638.7,0.0379748]
[1727372950866,4.56350113,2638.8,2638.7,0.0379748]
[1727372951259,3.7896,2638.8,2638.7,0.0379748]
[1727372951957,10.93390388,2638.8,2638.7,0.0379748]
[1727372952174,10.83914696,2638.8,2638.7,0.0379748]
[1727372952896,11.23454434,2638.8,2638.7,0.0379748]
[1727372954594,12.04494434,2638.8,2638.7,0.0379748]
[1727372954805,13.97833847,2638.8,2638.7,0.0379748]
[1727372956026,10.47879151,2638.8,2638.7,0.0379748]
[1727372956185,4.18499738,2638.8,2638.7,0.0379748]
[1727372956388,3.78945,2638.9,2638.7,0.0379748]
[1727372956719,3.78945,2638.9,2638.8,0.7542]
[1727372963297,3.7896,2638.8,2638.7,0.0379748]
[1727372963616,8.14180262,2638.8,2638.7,0.0379748]
[1727372963817,8.04705196,2638.8,2638.7,0.0379748]
[1727372965809,4.547505,2638.8,2638.7,0.0379748]
[1727372966888,3.7896,2638.8,2638.7,0.0379748]
[1727372967496,3.78925,2639.1,2638.8,0.7542]
[1727372967731,3.78931,2639.0,2638.8,0.7542]
[1727372967906,3.78945,2638.9,2638.8,0.7542]
[1727372971744,3.7896,2638.8,2638.7,0.0379748]
[1727372971910,7.38390644,2638.8,2638.7,0.0379748]
[1727372974101,10.93390644,2638.8,2638.7,0.0379748]
[1727372974302,10.83914696,2638.8,2638.7,0.0379748]
[1727372974507,12.45689436,2638.8,2638.7,0.0379748]
[1727372975452,3.7896,2638.8,2638.7,0.0379748]
[1727372975605,7.28914696,2638.8,2638.7,0.0379748]
[1727372976948,10.28914696,2638.8,2638.7,0.0379748]
[1727372977126,11.08014696,2638.8,2638.7,0.0379748]
[1727372977339,11.08014696,2638.8,2638.0,0.0379748]
[1727372977508,11.63114696,2638.1,2638.0,0.0379748]
[1727372977914,3.79155,2637.5,2637.2,0.0379748]
[1727372978110,6.79169,2637.4,2637.2,0.0379748]
[1727372978324,3.79175,2637.3,2637.2,0.0379748]
[1727372978717,6.79169,2637.4,2637.2,0.0379748]
[1727372978953,3.79149,2637.5,2637.2,0.0379748]
[1727372979256,3.79163,2637.4,2637.2,0.0379748]
[1727372979609,7.58337,2637.4,2637.2,0.0379748]
[1727372979849,3.79163,2637.4,2637.2,0.0379748]
[1727372980215,7.58333,2637.4,2637.2,0.0379748]
[1727372980436,3.79163,2637.4,2637.2,0.0379748]
[1727372980849,3.79161,2637.4,2637.2,0.0379748]
[1727372982748,3.79141,2637.6,2637.2,0.0379748]
[1727372983057,3.79141,2637.6,2637.3,0.794]
[1727372983058,3.7914,2637.6,2637.3,0.794]
[1727372983214,3.7915,2637.5,2637.3,0.794]
[1727372983417,3.7914,2637.6,2637.3,0.794]
[1727372983642,3.79113,2637.8,2637.3,4.58569]
[1727372983953,3.79119,2637.7,2637.3,0.794]
[1727372984109,3.79119,2637.7,2637.3,1.63557948]
[1727372984509,3.79134,2637.6,2637.3,1.63557948]
[1727372985136,3.79148,2637.5,2637.3,0.794]
[1727372985325,3.79125,2637.7,2637.3,0.794]
[1727372985913,7.29044696,2637.9,2637.4,3.79156]
[1727372986120,7.29044696,2637.9,2637.4,4.25391348]
[1727372986666,0.0947816,2637.8,2637.4,0.46235348]
[1727372986837,3.7912,2637.7,2637.3,0.794]
[1727372987852,3.7912,2637.7,2637.3,4.58575]
[1727372988316,3.79128,2637.7,2637.3,0.794]
[1727372988518,0.0947881,2637.6,2637.3,0.794]
[1727372989036,3.79155,2637.5,2637.3,0.794]
[1727372989358,3.79134,2637.6,2637.3,0.794]
[1727372989853,3.79155,2637.5,2637.3,0.794]
[1727372990546,3.79151,2637.5,2637.3,0.794]
[1727372991618,3.79099,2637.9,2637.3,5.04805948]
[1727372991818,3.79105,2637.8,2637.3,8.83969948]
[1727372992153,3.79105,2637.8,2637.3,5.04803948]
[1727372992317,3.79105,2637.8,2637.3,8.83971948]
[1727372992513,3.79099,2637.9,2637.3,5.04803948]
[1727372992713,3.79118,2637.7,2637.3,5.04803948]
[1727372992950,3.7907,2638.1,2637.6,3.79119]
[1727372993375,3.7908,2638.0,2637.7,0.8091]
[1727372993581,3.7907,2638.1,2637.7,0.8091]
[1727372993979,7.58141,2638.1,2637.7,0.8091]
[1727372994194,3.7907,2638.1,2637.7,0.8091]
[1727372994559,3.7907,2638.1,2637.7,4.60027]
[1727372994889,3.7907,2638.1,2637.7,5.439416]
[1727372995187,3.79041,2638.3,2637.8,3.79102]
[1727372995358,3.79047,2638.2,2637.8,3.79102]
[1727372995558,3.79041,2638.3,2637.8,3.79102]
[1727372995743,7.58082,2638.3,2637.8,3.79102]
[1727372996082,3.79041,2638.3,2637.9,0.8091]
[1727372996260,3.7905,2638.2,2637.9,0.8091]
[1727372996581,3.79061,2638.1,2637.9,0.8091]
[1727372996952,3.79075,2638.0,2637.9,0.8091]
[1727372997278,3.79061,2638.1,2637.9,0.8091]
[1727372997687,3.8853828,2638.1,2637.9,0.8091]
[1727372998139,3.79075,2638.0,2637.9,0.8091]
[1727372998348,7.38506975,2638.0,2637.5,4.60053]
[1727372998547,3.88552687,2638.0,2637.5,4.60053]
[1727372999080,3.79099,2637.9,2637.5,0.8091]
[1727372999287,3.7909,2637.9,2637.5,0.8091]
[1727372999878,3.7909,2637.9,2637.5,4.60054]
[1727373000094,3.7909,2637.9,2637.5,0.8091]
[1727373000385,3.88589833,2637.8,2637.5,0.8091]
[1727373000602,3.79118,2637.7,2637.5,0.8091]
[1727373000969,4.55854269,2637.9,2637.5,0.8091]
[1727373000970,4.29144696,2638.2,2637.5,0.8091]
[1727373001173,4.29144696,2638.2,2637.8,3.79103]
[1727373001174,3.79048,2638.2,2637.8,3.79103]
[1727373001400,3.79045,2638.3,2637.8,3.79103]
[1727373001593,3.0,2638.2,2637.8,3.79096]
[1727373001802,3.0,2638.2,2637.7,4.57637]
[1727373002097,6.79047,2638.2,2637.8,3.79101]
[1727373002296,3.79041,2638.3,2637.9,3.79081]
[1727373002498,3.79041,2638.3,2638.0,0.7852]
[1727373002796,3.79039,2638.3,2638.0,0.7852]
[1727373003004,3.79012,2638.5,2638.0,4.57584]
[1727373003174,3.79012,2638.5,2638.0,0.7852]
[1727373003580,3.79018,2638.4,2638.0,0.7852]
[1727373004246,3.79012,2638.5,2638.0,0.7852]
[1727373004379,3.79024,2638.4,2638.0,0.7852]
[1727373005507,3.79036,2638.3,2638.0,0.7852]
[1727373005710,7.58078,2638.3,2638.0,0.7852]
[1727373005909,3.79036,2638.3,2638.0,0.7852]
[1727373007122,3.79013,2638.5,2638.0,4.57588]
[1727373007411,3.79013,2638.5,2638.0,5.033468]
[1727373007614,3.79013,2638.5,2638.1,3.79059]
[1727373007975,3.7896,2638.8,2638.5,0.7852]
[1727373010711,3.78932,2639.0,2638.5,0.7852]
[1727373010712,3.78947,2638.9,2638.5,4.57521]
[1727373010887,3.78926,2639.1,2638.5,3.79001]
[1727373011089,3.78909,2639.2,2638.7,3.7896]
[1727373011278,3.78909,2639.2,2638.5,4.25229105]
[1727373011279,0.7615,2639.6,2638.9,0.7852]
[1727373011482,3.78877,2639.4,2638.9,4.57456]
[1727373012319,3.78873,2639.5,2638.9,4.57456]
[1727373012678,3.78881,2639.4,2638.9,4.57456]
[1727373012895,3.78873,2639.5,2638.9,0.7852]
[1727373013106,3.78888,2639.3,2638.9,0.7852]
[1727373013281,4.26104696,2639.8,2639.2,0.7852]
[1727373013481,3.78868,2639.5,2639.2,0.7852]
[1727373013681,4.6123996,2639.4,2639.2,0.7852]
[1727373013901,4.5176727,2639.4,2639.2,0.7852]
[1727373014115,3.78885,2639.4,2639.2,0.7852]
[1727373014719,3.78868,2639.5,2639.2,0.7852]
[1727373015022,3.78873,2639.4,2639.2,0.7852]
[1727373017079,3.78888,2639.3,2639.2,0.7852]
[1727373017909,3.78875,2639.4,2639.2,0.7852]
[1727373018921,3.78888,2639.3,2638.9,0.792]
[1727373019903,7.28860696,2639.2,2638.6,0.792]
[1727373020088,7.28860696,2639.2,2638.6,4.58179]
[1727373020089,3.78917,2639.1,2638.6,4.58179]
[1727373020426,3.78953,2638.9,2638.6,0.792]
[1727373020632,3.78966,2638.8,2638.6,0.792]
[1727373020792,3.78946,2638.9,2638.6,0.792]
[1727373021138,3.78926,2639.1,2638.6,4.58182]
[1727373021625,3.78931,2639.0,2638.6,0.792]
[1727373021827,3.78926,2639.1,2638.6,0.792]
[1727373021990,3.78926,2639.1,2638.6,4.58186]
[1727373022614,7.57856,2639.1,2638.6,4.58186]
[1727373022838,7.67330027,2639.1,2638.6,4.58186]
[1727373023033,3.78947,2638.9,2638.6,0.792]
[1727373023907,3.88400027,2639.1,2638.6,0.792]
[1727373024110,3.78976,2638.7,2638.4,0.792]
[1727373024646,3.78947,2638.9,2638.4,4.58215]
[1727373024844,7.57902,2638.9,2638.4,4.58215]
[1727373025200,3.78947,2638.9,2638.4,4.58215]
[1727373025735,3.78947,2638.9,2638.4,4.58217]
[1727373025942,3.78964,2638.8,2638.4,0.792]
[1727373026144,3.88457136,2638.7,2638.4,0.792]
[1727373026432,3.88457097,2638.7,2638.4,0.792]
[1727373026810,3.79025,2638.4,2638.1,0.792]
[1727373027027,3.79046,2638.2,2638.1,0.792]
[1727373028339,3.79025,2638.4,2638.1,0.792]
[1727373028645,3.88501321,2638.4,2638.1,0.792]
[1727373029141,3.79034,2638.3,2638.1,0.792]
[1727373029303,3.79034,2638.3,2637.4,7.34]
[1727373029304,3.79091,2637.9,2637.4,7.34]
[1727373029504,0.09478221,2637.8,2637.2,3.8298448]
[1727373029741,3.79121,2637.7,2637.2,4.67122328]
[1727373029943,3.8861909,2637.6,2637.2,0.0379748]
[1727373030124,0.09479042,2637.5,2637.2,0.0379748]
[1727373030327,3.79149,2637.5,2637.2,0.0379748]
[1727373030546,3.88622427,2637.6,2637.2,0.0379748]
[1727373030911,3.79143,2637.6,2637.2,0.0379748]
[1727373031111,0.09479289,2637.5,2637.2,0.0379748]
[1727373031534,7.29075696,2637.7,2637.2,0.0379748]
[1727373031723,3.79141,2637.6,2637.2,0.0379748]
[1727373031925,3.88620056,2637.6,2637.2,0.0379748]
[1727373032124,7.29075696,2637.7,2637.2,0.0379748]
[1727373032711,3.79132,2637.6,2637.2,0.0379748]
[1727373032917,3.88611055,2637.6,2637.2,0.0379748]
[1727373033963,7.38588759,2637.5,2637.2,0.0379748]
[1727373034163,3.79175,2637.3,2637.2,0.0379748]
[1727373034823,3.88655526,2637.3,2637.2,0.0379748]
[1727373035017,3.79172,2637.4,2637.2,0.0379748]
[1727373035259,3.79175,2637.3,2637.2,0.0379748]
[1727373035558,3.79169,2637.4,2637.2,0.0379748]
[1727373035858,3.79175,2637.3,2637.2,0.0379748]
[1727373036644,5.32166743,2637.3,2637.2,0.0379748]
[1727373036827,8.82121445,2637.3,2637.2,0.0379748]
[1727373037034,5.22686441,2637.3,2637.2,0.0379748]
[1727373037422,5.32166963,2637.3,2637.2,0.0379748]
[1727373037844,4.46536441,2637.3,2637.2,0.0379748]
[1727373038046,3.79175,2637.3,2637.2,0.0379748]
[1727373042732,3.79111,2637.8,2637.2,0.7910748]
[1727373042930,3.79111,2637.8,2637.3,3.79163]
[1727373043134,3.79084,2638.0,2637.5,3.79144]
[1727373043345,3.79084,2638.0,2637.6,0.454454]
[1727373043542,3.79031,2638.3,2637.7,0.7531]
[1727373043765,3.79031,2638.3,2637.8,3.79095]
[1727373043933,3.79003,2638.5,2638.0,3.79065]
[1727373044137,3.79003,2638.5,2638.2,0.7531]
[1727373044368,3.78982,2638.7,2638.2,0.7531]
[1727373044666,3.7899,2638.6,2638.2,0.7531]
[1727373044826,3.78982,2638.7,2638.2,0.7531]
[1727373045027,7.5797,2638.7,2638.2,0.7531]
[1727373045657,3.78982,2638.7,2638.2,5.0357885]
[1727373045871,3.0,2638.8,2638.3,3.7903]
[1727373046357,6.78963,2638.8,2638.3,3.7903]
[1727373046660,6.78963,2638.8,2638.4,0.50356685]
[1727373047362,3.78928,2639.1,2638.5,0.7582]
[1727373047573,3.78926,2639.1,2638.5,8.33802]
[1727373047729,3.78934,2639.0,2638.6,0.8355205]
[1727373048555,3.78946,2638.9,2638.6,0.8355205]
[1727373048720,3.78946,2638.9,2638.5,0.7582]
[1727373051437,7.579,2638.9,2638.5,0.7582]
[1727373051627,3.78946,2638.9,2638.5,0.7582]
[1727373052367,3.78946,2638.9,2638.5,4.54823]
[1727373052660,3.78946,2638.9,2638.5,1.64238568]
[1727373053872,3.78988,2638.6,2638.5,0.7582]
[1727373054078,3.78982,2638.7,2638.5,0.7582]
[1727373054633,7.57964,2638.7,2638.5,0.7582]
[1727373054832,3.78982,2638.7,2638.5,0.7582]
[1727373056087,3.78988,2638.6,2638.2,0.7582]
[1727373056476,3.7899,2638.6,2638.2,4.54856]
[1727373057094,3.7899,2638.6,2638.2,0.7582]
[1727373057299,3.88444008,2638.8,2638.3,4.54844]
[1727373057300,3.78969,2638.8,2638.3,4.54844]
[1727373057449,3.78969,2638.8,2638.4,3.79017]
[1727373057653,3.78969,2638.8,2638.3,4.54844]
[1727373057654,3.78968,2638.8,2638.3,4.54844]
[1727373057962,7.57939,2638.8,2638.3,4.54844]
[1727373058171,3.78968,2638.8,2638.3,4.54844]
[1727373059185,3.78974,2638.7,2638.3,0.7582]
[1727373060155,3.78968,2638.8,2638.3,4.54849]
[1727373060804,7.57941,2638.8,2638.3,4.54849]
[1727373061377,3.78968,2638.8,2638.3,4.54849]
[1727373061602,3.78978,2638.7,2638.3,4.54849]
[1727373062099,3.78968,2638.8,2638.3,0.7582]
[1727373062267,7.57937,2638.8,2638.3,0.7582]
[1727373062664,7.57937,2638.8,2638.3,4.54851]
[1727373062863,7.57937,2638.8,2638.3,0.7582]
[1727373062864,3.78989,2638.6,2638.3,0.7582]
[1727373063475,3.78989,2638.6,2638.0,4.57204]
[1727373063806,0.757957,2638.6,2638.1,3.79048]
[1727373064010,3.78998,2638.6,2638.1,3.79048]
[1727373064204,4.55435,2638.7,2638.1,3.79048]
[1727373064393,3.79003,2638.5,2638.1,3.79048]
[1727373065291,3.79003,2638.5,2638.1,3.78048]
[1727373067366,0.7645,2638.7,2638.0,0.7814]
[1727373067570,3.79042,2638.3,2638.0,0.7814]
[1727373068126,3.49954696,2638.5,2638.0,0.7814]
[1727373068127,3.79003,2638.5,2638.0,0.7814]
[1727373068430,3.79003,2638.5,2638.0,4.57205]
[1727373069414,3.79019,2638.4,2638.0,4.57205]
[1727373072732,4.5953717,2638.6,2638.0,8.36267]
[1727373073025,7.58026,2638.5,2638.0,4.57202]
[1727373073194,3.7901,2638.5,2638.0,4.57202]
[1727373074130,7.58022,2638.5,2638.0,4.57202]
[1727373074432,3.79021,2638.4,2638.0,0.7814]
[1727373078227,3.79039,2638.3,2638.0,0.7814]
[1727373078410,4.49842167,2638.4,2638.0,0.7814]
[1727373079357,3.79032,2638.3,2638.0,0.7814]
[1727373079727,4.49840167,2638.4,2638.0,0.7814]
[1727373079910,4.49840167,2638.4,2638.0,4.57214]
[1727373080114,3.79019,2638.4,2638.0,4.57214]
[1727373080438,6.78969,2638.8,2638.3,3.79026]
[1727373080743,6.78969,2638.8,2638.4,0.7515]
[1727373082512,3.78969,2638.8,2638.4,0.7515]
[1727373084829,3.78955,2638.9,2638.4,0.7515]
[1727373085141,7.57796,2639.3,2638.8,3.7895]
[1727373085310,7.57796,2639.3,2638.7,4.54113]
[1727373085311,3.78908,2639.2,2638.7,4.54113]
[1727373085512,4.18379185,2639.2,2638.7,4.54113]
[1727373085736,3.78908,2639.2,2638.7,4.54113]
[1727373086609,3.78923,2639.1,2638.7,0.7515]
[1727373086876,7.57853,2639.1,2638.7,0.7515]
[1727373087402,3.78923,2639.1,2638.7,0.7515]
[1727373088206,3.78918,2639.1,2638.7,4.54123]
[1727373088405,3.78918,2639.1,2638.7,0.7515]
[1727373088632,3.78935,2639.0,2638.7,0.7515]
[1727373088850,3.78947,2638.9,2638.4,3.79009]
[1727373089023,3.78947,2638.9,2638.5,0.7515]
[1727373089024,3.7896,2638.8,2638.5,0.7515]
[1727373089353,3.78975,2638.7,2638.5,0.7515]
[1727373089540,3.49954696,2638.7,2638.3,0.7515]
[1727373089744,3.49954696,2638.7,2638.3,4.5418]
[1727373089745,7.28930696,2638.7,2638.3,4.5418]
[1727373089946,3.78976,2638.7,2638.3,4.5418]
[1727373090419,7.57961,2638.7,2638.3,0.7515]
[1727373090622,3.78976,2638.7,2638.3,0.7515]
[1727373091551,3.78991,2638.6,2638.3,0.7515]
[1727373094322,3.79004,2638.5,2638.3,0.7515]
[1727373094542,3.79004,2638.5,2638.0,0.8202]
[1727373094543,3.79032,2638.3,2638.0,0.8202]
[1727373094751,3.79027,2638.4,2638.0,0.8202]
[1727373094929,3.79033,2638.3,2638.0,0.8202]
[1727373095431,7.28958696,2638.5,2638.0,0.8202]
[1727373095632,3.79018,2638.4,2638.0,0.8202]
[1727373096049,4.71523439,2638.5,2638.0,4.61082]
[1727373096252,8.50535439,2638.5,2638.0,4.61082]
[1727373096457,4.71523439,2638.5,2638.0,4.61082]
[1727373096662,4.71523439,2638.5,2638.1,3.7906]
[1727373097025,3.78989,2638.6,2638.1,3.7906]
[1727373097819,3.78989,2638.6,2638.2,3.79045]
[1727373098661,3.78985,2638.7,2638.3,3.79031]
[1727373098871,3.78985,2638.7,2638.4,0.8202]
[1727373101365,3.78968,2638.8,2638.4,4.61036]
[1727373101573,3.78955,2638.9,2638.5,3.79001]
[1727373101946,7.5791,2638.9,2638.5,3.79001]
[1727373102155,7.5791,2638.9,2638.4,0.8202]
[1727373102156,3.78955,2638.9,2638.4,0.8202]
[1727373102481,3.7896,2638.8,2638.4,4.61035]
[1727373104259,3.78976,2638.7,2638.4,0.8202]
[1727373104447,0.757915,2638.8,2638.5,3.78996]
[1727373104634,3.78942,2639.0,2638.5,3.78996]
[1727373104635,3.78954,2638.9,2638.5,3.78996]
[1727373104835,3.78961,2638.8,2638.4,4.61037]
[1727373105581,7.57887,2639.0,2638.5,3.78999]
[1727373105781,4.168512,2638.9,2638.4,4.61037]
[1727373106581,3.7896,2638.8,2638.4,4.61037]
[1727373108844,3.78919,2639.1,2638.5,3.78994]
[1727373109052,3.78919,2639.1,2638.7,0.7911]
[1727373109964,4.59621,2639.2,2638.7,4.58083]
[1727373110171,3.7891,2639.2,2638.8,3.78951]
[1727373110371,3.78889,2639.3,2638.8,3.78951]
[1727373110698,3.78889,2639.3,2638.9,3.78945]
[1727373111463,3.78889,2639.3,2638.7,4.5807]
[1727373111664,3.78889,2639.3,2638.8,3.78952]
[1727373112392,3.78903,2639.2,2638.7,5.03877]
[1727373112598,3.78946,2638.9,2638.2,7.34]
[1727373112757,3.78932,2639.0,2638.4,3.79007]
[1727373113401,3.78932,2639.0,2638.6,3.78988]
[1727373113608,3.78925,2639.1,2638.4,3.79007]
[1727373113609,3.78955,2638.9,2638.4,3.79007]
[1727373113817,3.78967,2638.8,2638.3,4.5814]
[1727373115102,3.78977,2638.7,2638.3,4.5814]
[1727373115607,3.78991,2638.6,2638.3,0.7911]
[1727373115826,3.78981,2638.7,2638.3,0.7911]
[1727373116115,3.78989,2638.6,2638.3,0.7911]
[1727373117111,4.25399433,2638.7,2638.3,0.7911]
[1727373117413,3.78975,2638.7,2638.3,4.5814]
[1727373122776,3.78957,2638.9,2638.3,4.5814]
[1727373123283,3.78932,2639.0,2638.5,3.79001]
[1727373123612,3.78948,2638.9,2638.6,0.7911]
[1727373123776,7.57874,2639.0,2638.6,0.7911]
[1727373124120,3.78952,2638.9,2638.6,0.7911]
[1727373124498,3.78952,2638.9,2638.4,4.58119]
[1727373124837,3.78967,2638.8,2638.4,0.7911]
[1727373125002,3.78983,2638.7,2638.4,0.7911]
[1727373125751,3.78961,2638.8,2638.4,4.58126]
[1727373125914,3.78945,2638.9,2638.4,4.58126]
[1727373126115,3.78967,2638.8,2638.4,4.58126]
[1727373127105,3.78976,2638.7,2638.4,0.7911]
[1727373128732,5.02898051,2638.9,2638.4,4.58125]
[1727373128733,3.7896,2638.8,2638.4,4.58125]
[1727373129064,3.78958,2638.9,2638.5,3.79001]
[1727373129265,3.78958,2638.9,2638.4,0.7911]
[1727373129266,7.57917,2638.9,2638.4,0.7911]
[1727373129564,3.78958,2638.9,2638.4,4.58118]